[Event "WSTCC-65 2024"]
[Site "Krakow"]
[Date "2024.07.07"]
[Round "6.3"]
[White "Bykhovsky, Avigdor"]
[Black "Mestel, A Jonathan"]
[Result "1-0"]
[ECO "E84"]
[WhiteElo "2335"]
[BlackElo "2470"]
[Annotator "TA"]
[PlyCount "83"]
[EventDate "2024.07.01"]
[EventType "team-tourn"]
[EventCountry "POL"]
[SourceTitle "playchess.com"]
[Source "ChessBase"]
[SourceQuality "1"]
[TimeControl "40/5400+30:1800+30"]

{[%evp 17,83,41,56,41,55,12,14,18,18,22,17,22,31,32,66,57,78,85,86,80,84,87,80,80,76,84,81,81,87,80,86,45,49,38,38,26,108,50,58,30,62,13,36,35,55,0,0,0,31,31,79,74,70,30,38,38,93,93,106,109,117,112,240,234,237,229,235,235]} 1. d4 {[%emt 0:00:04]} Nf6 {[%emt 0:00:27]} 2. c4 {[%emt 0:00:29]} g6 {[%emt 0:00:16]} 3. Nc3 {[%emt 0:00:58]} Bg7 {[%emt 0:00:18]} 4. e4 {[%emt 0:00:28]} d6 {[%emt 0:00:35]} 5. f3 {[%emt 0:01:51]} O-O {[%emt 0:00:57]} 6. Be3 {[%emt 0:00:24]} Nc6 {[%emt 0:01:55]} 7. Nge2 {[%emt 0:05:14]} a6 {[%emt 0:00:38]} 8. Qd2 {[%emt 0:00:28]} Rb8 {[%emt 0:00:43]} 9. Rc1 {[%emt 0:00:22]} Bd7 {[%emt 0:02:06]} 10. Nd1 {[%emt 0:01:03]} Re8 {[%emt 0:08:34]} 11. g3 {[%emt 0:02:52]} b5 {[%emt 0:10:06][%cal Bb7b5,Bb5b4][%mdl 32]} 12. c5 {[%emt 0:04:52] The position is equal.} dxc5 {[%emt 0:05:54]} 13. Rxc5 {Threatening e5.} e5 {[%emt 0:01:06] [#] Strongly threatening ...exd4.} 14. d5 {[%emt 0:02:21]} Nd4 {[%emt 0:03:01]} 15. Bg2 {[%emt 0:02:11]} Nxe2 {[%emt 0:10:34]} 16. Kxe2 {[%emt 0:06:26]} b4 {[%emt 0:02:28]} 17. b3 {[%emt 0:02:00]} Bf8 {[%emt 0:03:02]} 18. Rc2 {[%emt 0:02:03]} Bb5+ {[%emt 0:11:24]} 19. Kf2 {[%emt 0:02:43]} c6 {[%emt 0:00:12]} 20. dxc6 {[%emt 0:01:42] [#] And now Qxd8 would win.} Qc7 {[%emt 0:03:44][%cal Ob8d8]} 21. Nb2 {[%emt 0:14:37]} Rbd8 {[%emt 0:03:42]} 22. Qc1 {[%emt 0:00:50]} Re6 {[%emt 0:00:07]} 23. Bf1 {[%emt 0:09:43]} Rdd6 {[%emt 0:00:43][%cal Rd6c6]} 24. Bxb5 {[%emt 0:07:36]} axb5 {[%emt 0:00:07]} 25. Rd1 {[%emt 0:00:04]} Rxc6 {[%emt 0:00:23]} 26. Rdd2 {[%emt 0:00:08]} Red6 {[%emt 0:05:24]} (26... Nh5 $11) 27. Rxc6 {[%emt 0:06:15]} (27. Nd3 $16) 27... Rxc6 $14 {[%emt 0:00:12]} 28. Qe1 {[%emt 0:02:04]} Rc3 {[%emt 0:12:08][%cal Oc3e3]} 29. Nd3 {[%emt 0:01:15]} (29. Kg2 $14) 29... Nd7 {[%emt 0:01:01]} 30. Kg2 {[%emt 0:02:58]} h5 {[%emt 0:01:50]} 31. Nf2 {[%emt 0:05:16]} (31. Qe2 $14) 31... Nc5 $11 {[%emt 0:06:00]} 32. Nd1 {[%emt 0:01:47]} Rc1 {[%emt 0:00:16][%cal Bc3c1,Bc1a1,Ba1e1,Be1e2,Be2a2][%mdl 32]} (32... Ne6 $5) 33. Qe2 {[%emt 0:00:59][%cal Od2d5] Rd5! is the strong threat.} Ne6 {[%emt 0:03:06]} (33... Qa5 $14 {deserves consideration.}) 34. Qxb5 $16 {[%emt 0:03:30]} Ra1 {[%emt 0:01:19]} 35. Nf2 {[%emt 0:05:24]} Qc3 {[%emt 0:01:52]} 36. Qe2 {[%emt 0:01:34]} Bc5 {[%emt 0:01:18]} (36... Rb1 $14) 37. Rd3 {[%emt 0:01:13]} Re1 {[%emt 0:00:58]} 38. Rxc3 {[%emt 0:00:49]} Rxe2 {[%emt 0:00:10]} 39. Rxc5 {[%emt 0:00:02]} Nxc5 {[%emt 0:00:53]} (39... Rxe3 $16 40. Rxe5 Re2) 40. Bxc5 $18 {[%emt 0:00:02] White is clearly better.} Rxa2 {[%emt 0:00:02]} 41. Bxb4 {[%emt 0:30:22]} Rb2 {[%emt 0:00:59]} 42. Bc3 {[%emt 0:00:00][%csl LRb2,LRe5] Weighted Error Value: White=0.13 (very precise) /Black=0.18 (very precise) .  Mistake:       	White=3     	Black=4      Inaccurate:     	White=3     	Black=3      OK:         	White=16    	Black=14     Best:        	White=3     	---} 1-0

[Event "WSTCC-65 2024"]
[Site "Krakow"]
[Date "2024.07.07"]
[Round "6.3"]
[White "Czajkowski, Ryszard"]
[Black "Joentausta, Hannu"]
[Result "1/2-1/2"]
[ECO "E43"]
[WhiteElo "1975"]
[BlackElo "2102"]
[Annotator "RC"]
[PlyCount "107"]
[EventDate "2024.07.01"]
[EventType "team-tourn"]
[EventCountry "POL"]
[SourceTitle "playchess.com"]
[Source "ChessBase"]
[SourceQuality "1"]
[TimeControl "40/5400+30:1800+30"]

1. d4 {[%emt 0:00:03]} Nf6 {[%emt 0:00:06]} 2. c4 {[%emt 0:00:09]} e6 {[%emt 0:00:09]} 3. Nc3 {[%emt 0:00:14]} Bb4 {[%emt 0:00:27]} 4. e3 {[%emt 0:00:26]} b6 {[%emt 0:00:20]} 5. Bd3 {[%emt 0:00:35]} Bb7 {[%emt 0:00:25]} 6. f3 {[%emt 0:01:16]} Nh5 {[%emt 0:01:54]} 7. Nge2 {[%emt 0:15:52]} O-O {[%emt 0:01:03]} 8. Qc2 {[%emt 0:03:09]} f5 {[%emt 0:02:51]} 9. a3 {[%emt 0:14:15]} Bxc3+ {[%emt 0:01:24]} 10. Nxc3 {[%emt 0:00:59]} Qh4+ {[%emt 0:08:47]} 11. Qf2 {[%emt 0:00:27]} Qxf2+ {[%emt 0:00:21]} 12. Kxf2 {[%emt 0:00:01]} Nc6 {[%emt 0:00:44]} 13. b4 {[%emt 0:01:30]} Ne7 {[%emt 0:14:47]} 14. g3 {[%emt 0:01:38]} Nf6 {[%emt 0:02:24]} 15. Ke2 {[%emt 0:01:53]} e5 {[%emt 0:07:15]} 16. d5 {[%emt 0:10:16]} a6 {[%emt 0:07:55]} 17. Bb2 {[%emt 0:01:45]} d6 {[%emt 0:00:21]} 18. Bc2 {[%emt 0:01:16]} Bc8 {[%emt 0:01:16]} 19. Rhc1 {[%emt 0:03:53]} Bd7 {[%emt 0:02:34]} 20. Bb3 {[%emt 0:00:23]} Kh8 {[%emt 0:06:37]} 21. Ba2 {[%emt 0:09:42]} Rae8 {[%emt 0:04:15]} 22. Rg1 {[%emt 0:00:52]} f4 {[%emt 0:05:46]} 23. e4 {[%emt 0:04:26]} fxg3 {[%emt 0:00:41]} 24. hxg3 {[%emt 0:00:17]} Nh5 {[%emt 0:01:37]} 25. Raf1 {[%emt 0:05:02]} Rf7 {[%emt 0:01:10]} 26. Bb3 {[%emt 0:00:28]} Ref8 {[%emt 0:00:26]} 27. Ke3 {[%emt 0:00:06]} Nf6 {[%emt 0:09:47]} 28. Rh1 {[%emt 0:01:54]} h6 {[%emt 0:03:46]} 29. Bd1 {[%emt 0:02:23]} Ng6 {[%emt 0:06:30]} 30. Be2 {[%emt 0:00:39]} Kg8 {[%emt 0:01:10]} 31. Nb1 {[%emt 0:02:35]} Re7 {[%emt 0:01:36]} 32. Nd2 {[%emt 0:02:05]} Rfe8 {[%emt 0:00:29]} 33. Bc3 {[%emt 0:01:54]} Nf8 {[%emt 0:00:23]} 34. c5 {[%emt 0:01:19]} Bb5 {[%emt 0:02:02]} 35. cxd6 {[%emt 0:04:55]} cxd6 {[%emt 0:00:10]} 36. Rc1 {[%emt 0:00:02]} Bxe2 {[%emt 0:02:13]} 37. Kxe2 {[%emt 0:00:01]} Rc7 {[%emt 0:00:23]} 38. Bb2 {[%emt 0:00:01]} Rec8 {[%emt 0:00:21]} 39. Rxc7 {[%emt 0:00:27]} Rxc7 {[%emt 0:00:01]} 40. Rc1 {[%emt 0:00:09]} Rxc1 {[%emt 0:00:07]} 41. Bxc1 {[%emt 0:30:01]} b5 {[%emt 0:31:19]} 42. Nb3 {[%emt 0:01:46]} N8d7 {[%emt 0:02:50]} 43. Be3 {[%emt 0:00:28]} Kf7 {[%emt 0:02:18]} 44. Na5 {[%emt 0:01:46]} Ke8 {[%emt 0:00:00]} 45. Nb7 {[%emt 0:00:00]} Ke7 {[%emt 0:00:00]} 46. Ba7 {[%emt 0:00:00]} Ne8 {[%emt 0:00:00]} 47. Na5 {[%emt 0:00:00]} Nef6 {[%emt 0:00:00]} 48. Nc6+ {[%emt 0:00:00]} Ke8 {[%emt 0:00:00]} 49. Ke3 {[%emt 0:00:00]} Nh5 {[%emt 0:00:00]} 50. Kf2 {[%emt 0:00:00]} Nhf6 {[%emt 0:00:00]} 51. Kg2 {[%emt 0:00:00]} Ng8 {[%emt 0:00:00]} 52. Be3 {[%emt 0:00:48]} Ne7 {[%emt 0:00:00]} 53. Nxe7 {[%emt 0:00:46]} Kxe7 {[%emt 0:00:00]} 54. g4 {[%emt 0:02:27]} 1/2-1/2

[Event "WSTCC-65 2024"]
[Site "Krakow"]
[Date "2024.07.07"]
[Round "6.3"]
[White "Pietrzak, Janusz"]
[Black "Jorgensen, Arne Bjorn"]
[Result "1/2-1/2"]
[ECO "C10"]
[WhiteElo "1919"]
[BlackElo "1940"]
[Annotator "NA RC"]
[PlyCount "33"]
[EventDate "2024.07.01"]
[EventType "team-tourn"]
[EventCountry "POL"]
[SourceTitle "playchess.com"]
[Source "ChessBase"]
[SourceQuality "1"]
[TimeControl "40/5400+30:1800+30"]

1. e4 {[%emt 0:00:04]} e6 {[%emt 0:00:04]} 2. d4 {[%emt 0:00:22]} d5 {[%emt 0:00:05]} 3. Nc3 {[%emt 0:00:08]} dxe4 {[%emt 0:00:14]} 4. Nxe4 {[%emt 0:00:15]} Be7 {[%emt 0:00:05]} 5. Nf3 {[%emt 0:00:33]} Nd7 {[%emt 0:00:08]} 6. Bd3 {[%emt 0:00:34]} Ngf6 {[%emt 0:00:07]} 7. O-O {[%emt 0:01:35]} O-O {[%emt 0:00:08]} 8. Bg5 {[%emt 0:02:49]} h6 {[%emt 0:07:55]} 9. Nxf6+ {[%emt 0:01:30]} Nxf6 {[%emt 0:00:26]} 10. Bxf6 {[%emt 0:00:42]} Bxf6 {[%emt 0:00:07]} 11. c3 {[%emt 0:00:10]} b6 {[%emt 0:03:11]} 12. Be4 {[%emt 0:09:24]} Rb8 {[%emt 0:01:45]} 13. Re1 {[%emt 0:01:55]} Bb7 {[%emt 0:04:03]} 14. Bxb7 {[%emt 0:07:39]} Rxb7 {[%emt 0:00:06]} 15. Ne5 {[%emt 0:00:34]} Bxe5 {[%emt 0:05:47]} 16. Rxe5 {[%emt 0:01:04]} c6 {[%emt 0:03:44]} 17. Qe2 1/2-1/2

[Event "WSTCC-65 2024"]
[Site "Krakow"]
[Date "2024.07.07"]
[Round "6.4"]
[White "Chapman, Terry P D"]
[Black "Lederman, Leon"]
[Result "1/2-1/2"]
[ECO "A05"]
[WhiteElo "2287"]
[BlackElo "2198"]
[Annotator "TA"]
[PlyCount "105"]
[EventDate "2024.07.01"]
[EventType "team-tourn"]
[EventCountry "POL"]
[SourceTitle "playchess.com"]
[Source "ChessBase"]
[SourceQuality "1"]
[TimeControl "40/5400+30:1800+30"]

{[%evp 10,105,17,9,30,25,39,8,43,23,16,14,18,12,25,8,0,0,6,4,51,51,98,80,100,36,105,105,136,54,89,24,59,11,93,85,94,90,114,103,115,0,0,0,-8,-26,-14,-19,-10,-17,63,72,68,63,61,42,94,87,80,89,119,115,121,124,120,120,114,126,127,8,8,8,8,8,8,0,0,0,-8,-8,-8,-8,-8,-8,-8,-8,-8,-8,0,0,0,0,0,0,0,0,0,0]} 1. Nf3 {[%emt 0:00:03]} Nf6 {[%emt 0:00:14]} 2. c4 {[%emt 0:00:27]} c6 {[%emt 0:00:07]} 3. g3 {[%emt 0:00:14]} d5 {[%emt 0:00:08]} 4. Bg2 {[%emt 0:00:05]} Bf5 {[%emt 0:00:58]} 5. Qb3 {[%emt 0:00:24]} Qb6 {[%emt 0:00:15]} 6. d3 {[%emt 0:00:14]} e6 {[%emt 0:01:27]} 7. Be3 {[%emt 0:00:25]} Qa6 {[%emt 0:01:25]} 8. Nh4 {[%emt 0:02:44]} Bg6 {[%emt 0:02:13]} 9. Nc3 {[%emt 0:02:14][%cal Rc4d5]} Be7 {[%emt 0:01:56]} 10. Nxg6 {[%emt 0:03:37]} hxg6 {[%emt 0:01:50]} 11. h3 {[%emt 0:01:08]} Nbd7 {[%emt 0:00:38]} 12. a3 {[%emt 0:09:02]} dxc4 {[%emt 0:04:41]} 13. Qxc4 {[%emt 0:03:17]} Qxc4 {[%emt 0:00:09]} 14. dxc4 {[%emt 0:00:02]} a5 {[%emt 0:00:32]} (14... Bc5 $11) 15. Na4 $14 {[%emt 0:04:41]} Kd8 {[%emt 0:13:18]} (15... O-O $14 {is superior.}) 16. O-O {[%emt 0:02:47]} Kc7 {[%emt 0:00:57]} 17. g4 {[%emt 0:02:30]} (17. Rfd1 $16) 17... Ne8 {[%emt 0:09:43]} (17... Nh7 $14) 18. Rfd1 $16 {[%emt 0:01:29][%cal Od1d7] aiming for Rxd7+!} Nd6 {[%emt 0:02:49][%cal Be8d6,Bd6b5,Bb5d4][%mdl 32]} 19. Rac1 {[%emt 0:08:04]} (19. c5 $16 Nc8 20. Rd2) 19... e5 {[%emt 0:06:32]} 20. f4 {[%emt 0:09:35]} (20. c5 $16 Nb5 21. Nb6) 20... f6 {[%emt 0:00:53][%cal Bf7f6,Bf6e5][%mdl 32]} 21. Rc2 {[%emt 0:06:32]} (21. c5 $14 Nf7 22. f5) 21... Rhe8 {[%emt 0:06:45]} (21... Nf7 $11) 22. c5 {[%emt 0:04:42] White is much more active.} Nb5 {[%emt 0:01:41]} 23. Be4 {[%emt 0:12:45]} Nf8 {[%emt 0:02:10][%cal Ob5d4]} 24. fxe5 {[%emt 0:05:46]} (24. Rcd2 {simplifies} Nd4 25. fxe5 fxe5 26. Rf1) 24... fxe5 {[%emt 0:00:24][%cal Ob5d4]} 25. Nb6 {[%emt 0:10:20]} (25. Rcd2 $16) 25... Rad8 $11 {[%emt 0:00:30]} 26. Rxd8 {[%emt 0:02:02]} Rxd8 {[%emt 0:00:14]} 27. Nc4 {[%emt 0:00:43][%csl LRa5,LRe5]} Nd4 {[%emt 0:02:45]} 28. Rd2 {[%emt 0:03:35]} Bxc5 {[%emt 0:02:58] White must now prevent ...b5.} 29. Kg2 {[%emt 0:01:38][%cal Oe3g1]} (29. Nxa5 $2 {is the wrong capture.} Nf3+ 30. exf3 Bxe3+ 31. Rf2 Rd2 $19 (31... Bxf2+ $2 32. Kxf2 Rd2+ 33. Kg3 $19)) 29... Nb3 {[%emt 0:12:35]} (29... Nd7 $11) 30. Rxd8 $14 {[%emt 0:00:19]} Kxd8 {[%emt 0:00:07]} 31. Bxc5 {[%emt 0:01:11]} Nxc5 {[%emt 0:00:06][%mdl 4096] Endgame. KBN-KNN} 32. Kf3 {[%emt 0:01:19]} g5 {[%emt 0:07:52]} ({Black should try} 32... Nb3 $14) 33. Nxa5 $16 {[%emt 0:00:46]} Kc7 {[%emt 0:00:24]} 34. Nc4 {[%emt 0:00:38]} Nfd7 {[%emt 0:00:22]} 35. Bf5 {[%emt 0:01:00]} b5 {[%emt 0:00:38]} 36. Nd2 {[%emt 0:00:57]} Nf6 {[%emt 0:00:08]} 37. Kf2 {[%emt 0:01:04]} Kd6 {[%emt 0:06:57] [#]} 38. Nf3 $1 {[%emt 0:00:05]} Nce4+ {[%emt 0:00:30] [#]} 39. Bxe4 {[%emt 0:00:55]} ({Better is} 39. Ke3 $1 $16 Kd5 40. b3) 39... Nxe4+ {[%emt 0:00:06] KN-KN. The position is equal.} 40. Ke3 {[%emt 0:00:03]} Kd5 {[%emt 0:00:19]} 41. b3 {[%emt 0:04:02] Strongly threatening a4.} Nc5 {[%emt 0:00:39]} 42. Nxg5 {[%emt 0:04:58] b4 is the strong threat.} Nxb3 {[%emt 0:00:08]} 43. h4 {[%emt 0:01:43]} Na5 {[%emt 0:00:27]} 44. Kd3 {[%emt 0:00:44]} Nc4 {[%emt 0:00:47]} 45. h5 {[%emt 0:05:47]} Nxa3 {[%emt 0:00:42]} 46. e4+ {[%emt 0:00:06]} Kd6 {[%emt 0:00:06]} 47. Nf7+ {[%emt 0:00:21]} Ke6 {[%emt 0:00:10]} 48. Nd8+ {[%emt 0:00:40]} Kd7 {[%emt 0:00:08]} 49. g5 {[%emt 0:05:19]} Ke8 {[%emt 0:00:10]} (49... Kxd8 $2 {loses.} 50. h6 gxh6 51. gxh6 $18) 50. Nxc6 {[%emt 0:01:24]} Nc4 {[%emt 0:00:06]} 51. h6 {[%emt 0:06:09]} gxh6 {[%emt 0:00:07]} 52. gxh6 {[%emt 0:00:04] White threatens h7 and mate.} Kf7 {[%emt 0:00:10]} 53. Kc3 {[%emt 0:01:15] Weighted Error Value: White=0.19 (very precise) /Black=0.21 (precise) .  Mistake:       	White=6     	Black=6      Inaccurate:     	White=1     	Black=4      OK:         	White=14    	Black=18     Best:        	White=6     	Black=2      Strong:       	White=1     	---} 1/2-1/2

[Event "WSTCC-65 2024"]
[Site "Krakow"]
[Date "2024.07.07"]
[Round "6.4"]
[White "Vinke, Dietmar"]
[Black "Krupa, Jerzy"]
[Result "1/2-1/2"]
[ECO "D69"]
[WhiteElo "2097"]
[BlackElo "1885"]
[Annotator "NA RC"]
[PlyCount "63"]
[EventDate "2024.07.01"]
[EventType "team-tourn"]
[EventCountry "POL"]
[SourceTitle "playchess.com"]
[Source "ChessBase"]
[SourceQuality "1"]
[TimeControl "40/5400+30:1800+30"]

1. d4 {[%emt 0:00:03]} d5 {[%emt 0:00:08]} 2. c4 {[%emt 0:00:04]} e6 {[%emt 0:00:06]} 3. Nc3 {[%emt 0:00:05]} Be7 {[%emt 0:01:17]} 4. Nf3 {[%emt 0:01:33]} Nf6 {[%emt 0:00:32]} 5. Bg5 {[%emt 0:00:07]} O-O {[%emt 0:01:42]} 6. e3 {[%emt 0:03:32]} Nbd7 {[%emt 0:01:03]} 7. Rc1 {[%emt 0:00:19]} c6 {[%emt 0:01:04]} 8. Bd3 {[%emt 0:01:22]} dxc4 {[%emt 0:01:29]} 9. Bxc4 {[%emt 0:00:13]} Nd5 {[%emt 0:00:39]} 10. Bxe7 {[%emt 0:00:09]} Qxe7 {[%emt 0:00:38]} 11. O-O {[%emt 0:00:13]} Nxc3 {[%emt 0:02:45]} 12. Rxc3 {[%emt 0:00:13]} e5 {[%emt 0:02:48]} 13. dxe5 {[%emt 0:01:22]} Nxe5 {[%emt 0:00:10]} 14. Nxe5 {[%emt 0:00:06]} Qxe5 {[%emt 0:00:04]} 15. f4 {[%emt 0:00:05]} Qe7 {[%emt 0:03:23]} 16. f5 {[%emt 0:10:11]} b5 {[%emt 0:08:38]} 17. f6 {[%emt 0:10:08]} gxf6 {[%emt 0:07:19]} 18. Bd3 {[%emt 0:00:14]} Rd8 {[%emt 0:09:01]} 19. Qc2 {[%emt 0:31:10]} b4 {[%emt 0:02:56]} 20. Bxh7+ {[%emt 0:02:18]} Kh8 {[%emt 0:00:50]} 21. Rd3 {[%emt 0:12:50]} Ba6 {[%emt 0:01:21]} 22. Rxd8+ {[%emt 0:00:11]} Rxd8 {[%emt 0:00:39]} 23. Re1 {[%emt 0:00:06]} c5 {[%emt 0:01:55]} 24. Bf5 {[%emt 0:03:26]} Qe5 {[%emt 0:03:57]} 25. Qf2 {[%emt 0:00:15]} Kg7 {[%emt 0:00:29]} 26. Rc1 {[%emt 0:10:36]} c4 {[%emt 0:04:57]} 27. h3 {[%emt 0:07:18]} c3 {[%emt 0:04:04]} 28. bxc3 {[%emt 0:00:05]} bxc3 {[%emt 0:00:28]} 29. Qf4 {[%emt 0:00:16]} Qc5 {[%emt 0:11:30]} 30. Kh2 {[%emt 0:01:22]} Rd2 {[%emt 0:01:53]} 31. Rc2 {[%emt 0:01:35]} Rxc2 {[%emt 0:17:02]} 32. Bxc2 {[%emt 0:00:04]} 1/2-1/2

[Event "WSTCC-65 2024"]
[Site "Krakow"]
[Date "2024.07.07"]
[Round "6.5"]
[White "Sharif, Mehrshad"]
[Black "Ftacnik, Lubomir"]
[Result "1/2-1/2"]
[ECO "A05"]
[WhiteElo "2324"]
[BlackElo "2452"]
[Annotator "TA"]
[PlyCount "40"]
[EventDate "2024.07.01"]
[EventType "team-tourn"]
[EventCountry "POL"]
[SourceTitle "playchess.com"]
[Source "ChessBase"]
[SourceQuality "1"]
[TimeControl "40/5400+30:1800+30"]

{[%evp 17,40,29,52,5,33,36,25,29,33,32,36,35,26,8,16,0,0,-7,0,0,0,-3,0,0,0]} 1. Nf3 {[%emt 0:00:04]} Nf6 {[%emt 0:00:10]} 2. g3 {[%emt 0:00:31]} g6 {[%emt 0:00:36]} 3. Bg2 {[%emt 0:01:14]} d5 {[%emt 0:00:57]} 4. O-O {[%emt 0:02:30]} Bg7 {[%emt 0:00:16]} 5. d4 {[%emt 0:00:21]} O-O {[%emt 0:00:44]} 6. c4 {[%emt 0:00:12]} dxc4 {[%emt 0:03:59]} 7. Na3 {[%emt 0:00:20]} Nc6 {[%emt 0:00:41]} 8. Nxc4 {[%emt 0:00:31]} Be6 {[%emt 0:00:13]} 9. b3 {[%emt 0:00:30]} a5 {[%emt 0:04:40]} 10. a4 {[%emt 0:02:24]} (10. Bb2 $14 {should be considered.}) 10... Qc8 {[%emt 0:10:19]} 11. Bb2 {[%emt 0:01:39]} Rd8 {[%emt 0:01:50]} 12. Rc1 {[%emt 0:07:55] White has an edge.} Bh3 {[%emt 0:02:34]} 13. e3 {[%emt 0:05:30]} Bxg2 {[%emt 0:04:30]} 14. Kxg2 {[%emt 0:00:19]} Qe6 {[%emt 0:13:49]} 15. Qe2 {[%emt 0:09:05]} Ne4 {[%emt 0:01:44] The position is equal.} 16. Ng1 {[%emt 0:09:26]} Nb4 {[%emt 0:09:44]} 17. Rfd1 {[%emt 0:08:59]} Na2 {[%emt 0:02:04]} 18. Rc2 {[%emt 0:00:17][%cal Od4d5]} Nb4 {[%emt 0:03:38] [#] Strongly threatening ...b5.} 19. Rcc1 {[%emt 0:00:26]} Na2 {[%emt 0:00:18]} 20. Rc2 {[%emt 0:00:20][%cal Od4d5]} Nb4 {[%emt 0:00:07] Weighted Error Value: White=0.09 (flawless) /Black=0.05 (flawless) .  Inaccurate:     	---       	Black=1      OK:         	White=5     	Black=4      Best:        	White=1     	---} 1/2-1/2

[Event "WSTCC-65 2024"]
[Site "Krakow"]
[Date "2024.07.07"]
[Round "6.5"]
[White "Vogt, Lothar"]
[Black "Kyas, Juergen"]
[Result "1/2-1/2"]
[ECO "B27"]
[WhiteElo "2292"]
[BlackElo "2173"]
[Annotator "TA"]
[PlyCount "36"]
[EventDate "2024.07.01"]
[EventType "team-tourn"]
[EventCountry "POL"]
[SourceTitle "playchess.com"]
[Source "ChessBase"]
[SourceQuality "1"]
[TimeControl "40/5400+30:1800+30"]

{[%evp 18,36,45,43,47,19,28,36,35,0,28,0,15,0,0,0,0,-48,-56,-43,0]} 1. e4 {[%emt 0:00:04]} c5 {[%emt 0:00:09]} 2. Nf3 {[%emt 0:00:06]} g6 {[%emt 0:00:04]} 3. c4 {[%emt 0:00:45]} Nc6 {[%emt 0:00:23]} 4. d4 {[%emt 0:00:10]} cxd4 {[%emt 0:00:04]} 5. Nxd4 {[%emt 0:00:07]} Nf6 {[%emt 0:00:12]} 6. Nc3 {[%emt 0:00:08]} d6 {[%emt 0:00:02]} 7. Be2 {[%emt 0:00:17]} Nxd4 {[%emt 0:00:06]} 8. Qxd4 {[%emt 0:00:09]} Bg7 {[%emt 0:00:12]} 9. Be3 {[%emt 0:00:03]} O-O {[%emt 0:00:10]} 10. Qd2 {[%emt 0:00:09]} a5 {[%emt 0:00:21][%cal Ba7a5,Ba5a4][%mdl 32]} 11. f3 {[%emt 0:00:34]} a4 $1 {[%emt 0:03:19]} 12. Rc1 {[%emt 0:00:16]} Be6 {[%emt 0:00:54] White is slightly better.} 13. Nb5 {[%emt 0:08:18]} Nd7 {[%emt 0:04:36]} 14. Nd4 {[%emt 0:08:06]} Nc5 {[%emt 0:00:38]} 15. Nxe6 {[%emt 0:00:06]} fxe6 {[%emt 0:02:34]} 16. O-O {[%emt 0:01:44]} Qa5 {[%emt 0:05:37] Prevents Qb4.} 17. Rfd1 {[%emt 0:05:13]} (17. Qxa5 $11 Rxa5 18. Rc2) 17... Qxd2 $15 {[%emt 0:07:00]} 18. Rxd2 {[%emt 0:00:03]} Rfc8 {[%emt 0:00:26] Weighted Error Value: White=0.20 (precise) /Black=0.06 (flawless) .  Mistake:       	White=1     	---        Inaccurate:     	White=3     	Black=2      OK:         	White=1     	Black=2      Best:        	---       	Black=1      Strong:       	---       	Black=1} 1/2-1/2

[Event "WSTCC-65 2024"]
[Site "Krakow"]
[Date "2024.07.07"]
[Round "6.5"]
[White "Chubar, Vladimir"]
[Black "Vilerte, Tamara"]
[Result "1/2-1/2"]
[ECO "D03"]
[WhiteElo "1836"]
[BlackElo "1971"]
[Annotator "NA RC"]
[PlyCount "32"]
[EventDate "2024.07.01"]
[EventType "team-tourn"]
[EventCountry "POL"]
[SourceTitle "playchess.com"]
[Source "ChessBase"]
[SourceQuality "1"]
[TimeControl "40/5400+30:1800+30"]

1. d4 {[%emt 0:00:15]} d5 {[%emt 0:00:14]} 2. Nf3 {[%emt 0:00:48]} Nf6 {[%emt 0:00:48]} 3. Bg5 {[%emt 0:00:41]} c6 {[%emt 0:00:33]} 4. Nbd2 {[%emt 0:01:04]} Bf5 {[%emt 0:04:53]} 5. e3 {[%emt 0:01:46]} e6 {[%emt 0:04:15]} 6. Be2 {[%emt 0:01:13]} Be7 {[%emt 0:00:51]} 7. c4 {[%emt 0:01:40]} dxc4 {[%emt 0:12:02]} 8. Bxc4 {[%emt 0:00:44]} Nbd7 {[%emt 0:00:54]} 9. O-O {[%emt 0:03:08]} O-O {[%emt 0:07:56]} 10. Qe2 {[%emt 0:05:04]} Ne4 {[%emt 0:06:20]} 11. Bxe7 {[%emt 0:06:02]} Qxe7 {[%emt 0:00:20]} 12. Nxe4 {[%emt 0:05:37]} Bxe4 {[%emt 0:00:16]} 13. Rfd1 {[%emt 0:04:30]} Bxf3 {[%emt 0:16:08]} 14. Qxf3 {[%emt 0:05:48]} Qg5 {[%emt 0:01:12]} 15. Bb3 {[%emt 0:04:27]} Nf6 {[%emt 0:06:10]} 16. h3 {[%emt 0:06:18]} Rfd8 {[%emt 0:05:05]} 1/2-1/2

[Event "WSTCC-65 2024"]
[Site "Krakow"]
[Date "2024.07.07"]
[Round "6.6"]
[White "Plachetka, Jan"]
[Black "Roos, Daniel"]
[Result "1/2-1/2"]
[ECO "A15"]
[WhiteElo "2289"]
[BlackElo "2307"]
[Annotator "TA"]
[PlyCount "28"]
[EventDate "2024.07.01"]
[EventType "team-tourn"]
[EventCountry "POL"]
[SourceTitle "playchess.com"]
[Source "ChessBase"]
[SourceQuality "1"]
[TimeControl "40/5400+30:1800+30"]

{[%evp 23,28,19,19,-6,-3,0,0]} 1. c4 {[%emt 0:00:32]} Nf6 {[%emt 0:00:26]} 2. Nf3 {[%emt 0:00:06]} g6 {[%emt 0:02:30]} 3. Nc3 {[%emt 0:00:21]} d5 {[%emt 0:00:20]} 4. cxd5 {[%emt 0:00:50]} Nxd5 {[%emt 0:00:07]} 5. e4 {[%emt 0:01:47]} Nxc3 {[%emt 0:00:11]} 6. bxc3 {[%emt 0:00:06]} Bg7 {[%emt 0:00:20]} 7. d4 {[%emt 0:00:08]} O-O {[%emt 0:03:17]} 8. Be3 {[%emt 0:00:36]} c5 {[%emt 0:01:23]} 9. Qd2 {[%emt 0:01:55]} Bg4 {[%emt 0:03:55]} 10. Be2 {[%emt 0:03:54]} Nc6 {[%emt 0:13:44]} 11. d5 {[%emt 0:02:27]} Qa5 {[%emt 0:00:16]} 12. Rc1 {[%emt 0:00:38]} Rad8 {[%emt 0:03:14] The position is equal.} 13. h3 {[%emt 0:14:51]} Bxf3 {[%emt 0:00:37]} 14. Bxf3 {[%emt 0:00:15]} e6 {[%emt 0:05:57] Not much happened in this game.   OK:         	---       	Black=2} 1/2-1/2